bitfinex/quotes_BTCUSD_20260127
["timestamp","ask_amount","ask_price","bid_price","bid_amount"]
[1769546643869,0.02359687,89008.0,88982.0,0.07445056]
[1769546644100,0.02359687,88998.0,88982.0,0.07445056]
[1769546644316,0.33270486,89010.0,88982.0,0.07445056]
[1769546644518,0.05618359,88994.0,88982.0,0.07445056]
[1769546644724,0.02359687,88994.0,88982.0,0.07429142]
[1769546644926,0.05618366,88994.0,88982.0,0.07429142]
[1769546645176,0.02359687,88993.0,88982.0,0.07429142]
[1769546646435,0.05618374,88994.0,88982.0,0.07429142]
[1769546646640,0.02359687,88993.0,88982.0,0.07429142]
[1769546646862,0.05618509,88992.0,88982.0,0.07429142]
[1769546647067,0.05618705,88989.0,88971.0,0.0604181]
[1769546647208,0.02359687,88988.0,88971.0,0.0604181]
[1769546650967,0.33222269,88980.0,88961.0,0.00013953]
[1769546651177,0.05619924,88970.0,88961.0,6.977e-05]
[1769546651383,0.02359687,88969.0,88961.0,6.977e-05]
[1769546651850,0.02359687,88969.0,88961.0,0.06048787]
[1769546652304,0.02359687,88969.0,88952.0,0.0604181]
[1769546652507,0.11548,88979.0,88952.0,0.00013945]
[1769546652508,0.05620304,88964.0,88952.0,0.00013945]
[1769546652712,0.07980064,88963.0,88952.0,0.00013945]
[1769546652917,0.05620552,88960.0,88952.0,0.00013945]
[1769546653122,0.02359687,88969.0,88952.0,0.00013945]
[1769546653337,0.02359687,88958.0,88952.0,0.00013945]
[1769546656834,0.22480515,88966.0,88952.0,0.00013945]
[1769546656835,0.02359687,88969.0,88953.0,0.0604181]
[1769546657057,0.00892694,88987.0,88960.0,0.02316102]
[1769546657267,0.00892694,88986.0,88964.0,0.02316102]
[1769546657482,0.02359687,88985.0,88965.0,0.0604181]
[1769546658495,0.05619212,88981.0,88965.0,0.0604181]
[1769546658718,0.02359687,88980.0,88958.0,0.0604181]
[1769546658861,0.02359687,88980.0,88959.0,0.0604181]
[1769546659084,0.02359687,88980.0,88960.0,0.00907622]
[1769546659285,0.02359687,88980.0,88961.0,0.0604181]
[1769546660985,0.02359687,88980.0,88962.0,0.00907602]
[1769546661186,0.02359687,88980.0,88963.0,0.0604181]
[1769546661392,0.11548,88992.0,88964.0,0.02316102]
[1769546661393,0.00892694,88988.0,88964.0,0.02316102]
[1769546661614,0.00892694,88988.0,88967.0,0.0604181]
[1769546661837,0.02359687,88987.0,88967.0,0.0604181]
[1769546662094,0.02359687,88985.0,88967.0,0.0604181]
[1769546662924,0.02359687,88985.0,88968.0,0.0604181]
[1769546663540,0.02359687,88985.0,88967.0,0.02316102]
[1769546663703,0.06328395,89005.0,88952.0,0.00013945]
[1769546663704,0.0008894,89015.0,88970.0,0.05956044]
[1769546663901,0.02429789,89000.0,88974.0,0.05956044]
[1769546664098,0.02429789,88997.0,88976.0,0.05956044]
[1769546664324,0.02429789,88995.0,88976.0,0.05956044]
[1769546665093,0.02429789,88995.0,88976.0,0.06784326]
[1769546665297,0.02429789,88995.0,88976.0,0.05956044]
[1769546665501,0.00892694,88999.0,88976.0,0.05956044]
[1769546665698,0.02327232,88995.0,88976.0,0.05956044]
[1769546665903,0.02327232,88994.0,88976.0,0.05956044]
[1769546666323,0.02327232,88992.0,88976.0,0.05956044]
[1769546666531,0.02327232,88990.0,88976.0,0.05956044]
[1769546666834,0.08087616,88994.0,88969.0,0.0247925]
[1769546667042,0.08087616,88994.0,88956.0,0.0247925]
[1769546667043,0.33222269,88990.0,88956.0,0.0247925]
[1769546667240,0.02327232,88982.0,88959.0,0.05956044]
[1769546667443,0.02327232,88980.0,88960.0,0.05956044]
[1769546667850,0.00892694,88979.0,88960.0,0.05956044]
[1769546668057,0.02327232,88973.0,88953.0,0.05956044]
[1769546668267,0.02327232,88971.0,88953.0,0.05956044]
[1769546668878,0.02327232,88971.0,88952.0,0.02493195]
[1769546668879,0.02327232,88966.0,88952.0,0.00013945]
[1769546670212,0.02327232,88966.0,88952.0,0.05969989]
[1769546670650,0.02327232,88983.0,88952.0,0.02493195]
[1769546670861,0.056195,88976.0,88955.0,0.05956044]
[1769546671064,0.03219926,88975.0,88955.0,0.05956044]
[1769546671465,0.03219926,88975.0,88955.0,0.0247925]
[1769546671682,0.03219926,88975.0,88956.0,0.05956044]
[1769546672229,0.02327232,88990.0,88976.0,0.00107306]
[1769546672435,0.02327232,89000.0,88977.0,0.0247925]
[1769546672644,0.02327232,89000.0,88978.0,0.05956044]
[1769546673070,0.05618066,88999.0,88978.0,0.05956044]
[1769546673280,0.02327232,88999.0,88978.0,0.05956044]
[1769546673496,0.02327232,88998.0,88978.0,0.05956044]
[1769546673716,0.05617982,89000.0,88978.0,0.05956044]
[1769546673939,0.02327232,88998.0,88978.0,0.05956044]
[1769546674147,0.02327232,88997.0,88978.0,0.05956044]
[1769546675934,0.02327232,88997.0,88980.0,0.05956044]
[1769546676609,0.67988217,89141.0,88980.0,0.05956044]
[1769546676610,0.05617272,89012.0,88980.0,0.05956044]
[1769546676905,0.41309885,89020.0,88960.0,0.33222269]
[1769546676906,0.05617385,89010.0,88983.0,0.05956044]
[1769546677156,0.02373741,89010.0,88983.0,0.05956044]
[1769546677369,0.02327232,89009.0,88983.0,0.05956044]
[1769546678050,0.08087616,89005.0,88983.0,0.05956044]
[1769546678302,0.02327232,89004.0,88983.0,0.05956044]
[1769546679445,0.02373741,89010.0,88986.0,0.0247925]
[1769546679660,0.02373741,89010.0,88989.0,0.05956044]
[1769546679864,0.02373741,89010.0,88977.0,0.0247925]
[1769546680067,0.02373741,89010.0,88981.0,0.0247925]
[1769546680377,0.02373741,89010.0,88985.0,0.0247925]
[1769546680580,0.02373741,89010.0,88987.0,0.0247925]
[1769546680798,0.02373741,89010.0,88988.0,0.05956044]
[1769546681328,0.08087616,89006.0,88988.0,0.05956044]
[1769546681854,0.02327232,89005.0,88988.0,0.05956044]
[1769546682103,0.02327232,89004.0,88982.0,0.05120923]
[1769546683368,0.02327232,89004.0,88983.0,0.05120923]
[1769546683576,0.02327232,89004.0,88983.0,0.05105011]
[1769546683822,0.02327232,89004.0,88983.0,0.05120923]
[1769546684031,0.00046509,89010.0,88986.0,0.0247925]
[1769546684248,0.08087616,89009.0,88990.0,0.0247925]
[1769546684458,0.08087616,89009.0,88993.0,0.05120923]
[1769546684667,0.08087616,89009.0,88994.0,0.05120923]
[1769546685296,0.02373741,89010.0,88994.0,0.05120923]
[1769546685520,0.08087616,89009.0,88994.0,0.05120923]
[1769546686800,0.02327232,89008.0,88994.0,0.05120923]
[1769546687811,0.02327232,89008.0,88994.0,0.05105011]
[1769546691032,0.02378982,89008.0,88994.0,0.05105011]
[1769546692030,0.02327232,89007.0,88994.0,0.05105011]
[1769546692841,0.02378982,89007.0,88994.0,0.05105011]
[1769546694419,0.02372969,89017.0,88980.0,0.2247685]
[1769546694641,0.0002619,89019.0,89007.0,0.00107306]
[1769546694839,0.0002619,89019.0,89008.0,0.04731771]
[1769546695014,0.0002619,89019.0,89008.0,0.047445]
[1769546695636,0.08087616,89022.0,89010.0,0.04739262]
[1769546695854,0.08087616,89022.0,89010.0,0.04785771]
[1769546696497,0.20527294,89033.0,89010.0,0.04785771]
[1769546696802,0.08087616,89023.0,89010.0,0.04785771]
[1769546697062,0.08087616,89023.0,89011.0,0.04739262]
[1769546697235,0.02372969,89022.0,89004.0,0.02422791]
[1769546697435,0.02372969,89020.0,88989.0,0.04737262]
[1769546697670,0.00892694,89004.0,88989.0,0.04737262]
[1769546697872,0.02372969,89009.0,88989.0,0.04737262]
[1769546699780,0.02372969,89009.0,88989.0,0.02422791]
[1769546699921,0.02372969,89009.0,88990.0,0.04737262]
[1769546700323,0.08087616,89008.0,88990.0,0.04737262]
[1769546700533,0.02372969,89007.0,88990.0,0.04737262]
[1769546702688,0.02372969,89007.0,88980.0,0.00177738]
[1769546702886,0.02372969,89007.0,88983.0,0.04737262]
[1769546703134,0.02372969,89007.0,88985.0,0.04737262]
[1769546703284,0.02372969,89007.0,88988.0,0.02422791]
[1769546703483,0.02372969,89007.0,88989.0,0.02422791]
[1769546703713,0.02372969,89007.0,88990.0,0.04737262]
[1769546703887,0.0067254,89015.0,88991.0,0.02422791]
[1769546704086,0.02831011,89021.0,88994.0,0.04737262]
[1769546704408,0.02372969,89019.0,88998.0,0.02422791]
[1769546704826,0.08134116,89022.0,88980.0,0.33248459]
[1769546704827,0.000465,89022.0,89003.0,0.04737262]
[1769546705015,0.000465,89022.0,89007.0,0.04737262]
[1769546705232,0.000465,89022.0,89009.0,0.02422791]
[1769546705448,0.000465,89022.0,89010.0,0.04737262]
[1769546705668,0.000465,89022.0,89009.0,0.02422791]
[1769546705669,0.09009484,89035.0,89023.0,0.04737262]
[1769546705873,0.09009484,89035.0,89023.0,0.04721353]
[1769546705874,0.11241855,89034.0,89023.0,0.04721353]
[1769546706093,0.11241855,89034.0,89022.0,0.000465]
[1769546706094,0.0002619,89035.0,89022.0,0.000465]
[1769546706296,0.0002619,89035.0,89023.0,0.04517213]
[1769546707050,0.0002619,89035.0,89013.0,0.02422791]
[1769546707395,0.0002619,89035.0,89017.0,0.02422791]
[1769546707623,0.0002619,89035.0,89020.0,0.04517213]
[1769546707827,0.0002619,89035.0,89023.0,0.02422791]
[1769546708036,0.0002619,89035.0,89024.0,0.04501306]
[1769546708247,0.0002619,89035.0,89024.0,0.03624519]
[1769546708248,0.08087616,89032.0,89024.0,0.03624519]
[1769546708497,0.0002619,89035.0,89017.0,0.000465]
[1769546708697,0.02372969,89034.0,89018.0,0.04517213]
[1769546709604,0.0002619,89035.0,89021.0,0.02422791]
[1769546709810,0.0002619,89035.0,89022.0,0.02422791]
[1769546710132,0.0002619,89035.0,89023.0,0.04517213]
[1769546710540,0.02372969,89034.0,89017.0,0.000465]
[1769546710656,0.02372969,89034.0,89018.0,0.04517213]
[1769546710866,0.33183096,89030.0,89017.0,0.000465]
[1769546711239,0.02372969,89025.0,88990.0,0.02422791]
[1769546711384,0.04554004,89024.0,88993.0,0.04517213]
[1769546711597,0.000465,89025.0,88996.0,0.02422791]
[1769546711598,0.02372969,89022.0,88996.0,0.02422791]
[1769546711912,0.02372969,89022.0,88999.0,0.02422791]
[1769546712122,0.02372969,89022.0,88983.0,0.22476145]
[1769546712123,0.08087616,89019.0,89000.0,0.04517213]
[1769546712386,0.08087616,89019.0,88982.0,0.04517213]
[1769546712564,0.08087616,89019.0,88983.0,0.02422791]
[1769546712742,0.08087616,89019.0,88969.0,0.02308]
[1769546712743,0.02372969,89018.0,88986.0,0.04517213]
[1769546712941,0.08087616,89019.0,88990.0,0.04517213]
[1769546712942,0.02372969,89015.0,88990.0,0.04517213]
[1769546713146,0.02372969,89014.0,88992.0,0.04517213]
[1769546713343,0.02372969,89014.0,88994.0,0.04517213]
[1769546713743,0.02372969,89014.0,88995.0,0.04517213]
[1769546719537,0.04554004,89012.0,88995.0,0.04517213]
[1769546719740,0.02372969,89011.0,88995.0,0.04517213]
[1769546721452,0.04554004,89011.0,88995.0,0.04517213]
[1769546721645,0.02372969,89010.0,88989.0,0.02422791]
[1769546721853,0.02372969,89008.0,88990.0,0.04517213]
[1769546722075,0.09009484,89035.0,88980.0,0.0002619]
[1769546722292,0.09009484,89035.0,89012.0,0.02422791]
[1769546722293,0.08087616,89034.0,89012.0,0.02422791]
[1769546722520,0.0002619,89035.0,89016.0,0.02422791]
[1769546722736,0.11231035,89034.0,89019.0,0.04517213]
[1769546722958,0.11231035,89033.0,89023.0,0.04517213]
[1769546723181,0.0002619,89035.0,89023.0,0.04517213]
[1769546723182,0.11231035,89032.0,89024.0,0.04517213]
[1769546723389,0.0002619,89035.0,89026.0,0.0452491]
[1769546723826,0.0004,89041.0,89035.0,0.045511]
[1769546724032,0.0004,89041.0,89035.0,0.0452491]
[1769546725288,0.08087616,89055.0,89038.0,0.06808854]
[1769546725502,0.08983294,89059.0,89039.0,0.04352198]
[1769546725727,0.09018144,89060.0,89042.0,0.02456656]
[1769546725935,0.09018144,89060.0,89044.0,0.06488071]
[1769546726379,0.0003485,89060.0,89044.0,0.06488071]
[1769546727235,0.00048794,89060.0,89044.0,0.06458818]
[1769546727857,0.00048794,89060.0,89046.0,0.02456656]
[1769546728069,0.00048794,89060.0,89047.0,0.06808854]
[1769546728282,0.00048794,89060.0,89048.0,0.04352198]
[1769546728493,0.00048794,89060.0,89049.0,0.06808854]
[1769546729419,0.04655929,89060.0,89026.0,0.04352198]
[1769546729622,0.02474876,89059.0,89030.0,0.04352198]
[1769546729828,0.02474876,89059.0,89032.0,0.04352198]
[1769546730039,0.02474876,89059.0,89035.0,0.02456656]
[1769546730240,0.02474876,89059.0,89037.0,0.02456656]
[1769546730464,0.02474876,89059.0,89040.0,0.04352198]
[1769546730747,0.02474876,89059.0,89040.0,0.06410931]
[1769546731121,0.02474876,89059.0,89040.0,0.02456656]
[1769546731315,0.02474876,89059.0,88969.0,0.05670802]
[1769546731316,0.02474876,89059.0,89041.0,0.04352198]
[1769546731526,0.00048794,89060.0,89044.0,0.02456656]
[1769546731721,0.00048794,89060.0,89046.0,0.02456656]
[1769546731995,0.00048794,89060.0,89018.0,0.33700989]
[1769546731996,0.00048794,89060.0,89050.0,0.02456656]
[1769546732197,0.0004,89063.0,89060.0,0.0250545]
[1769546732368,0.0004,89063.0,89030.0,0.33183096]
[1769546732369,0.08983294,89070.0,89059.0,0.04352198]
[1769546732602,0.08983294,89070.0,89059.0,0.04366142]
[1769546732990,0.08087616,89073.0,89059.0,0.04366142]
[1769546732991,0.08983294,89072.0,89059.0,0.04167223]
[1769546733394,0.1707091,89073.0,89059.0,0.04167223]
[1769546734044,0.08983294,89070.0,89059.0,0.04167223]
[1769546735361,0.09023294,89071.0,89059.0,0.04167223]
[1769546735565,0.09023294,89071.0,89060.0,0.03677102]
[1769546736196,0.11211432,89070.0,89060.0,0.02456656]
[1769546736408,0.08983294,89076.0,89041.0,0.0028994]
[1769546736621,0.08997233,89076.0,89042.0,0.0028994]
[1769546736832,0.00013939,89076.0,89051.0,0.0028994]
[1769546737049,0.00013939,89076.0,89055.0,0.0028994]
[1769546737261,0.00013939,89076.0,89058.0,0.04352198]
[1769546737439,0.00013939,89076.0,89061.0,0.0028994]
[1769546737646,0.00013939,89076.0,89062.0,0.04352198]
[1769546737863,0.00013939,89076.0,89048.0,0.05614925]
[1769546738062,0.00013939,89076.0,89049.0,0.04352198]
[1769546738683,0.00013939,89076.0,89047.0,0.10702415]
[1769546738888,0.00013939,89076.0,89048.0,0.04352198]
[1769546739122,0.00013939,89076.0,89050.0,0.05614801]
[1769546739297,0.00013939,89076.0,89051.0,0.05614745]
[1769546739582,0.00013939,89076.0,89051.0,0.04352198]
[1769546743852,0.07107134,89075.0,89051.0,0.04352198]
[1769546744054,0.02499999,89075.0,89053.0,0.04352198]
[1769546744302,0.00033939,89078.0,89054.0,0.0011229]
[1769546744503,0.00033939,89078.0,89055.0,0.04352198]
[1769546744651,0.00033939,89078.0,89057.0,0.04352198]
[1769546744846,0.00033939,89078.0,89059.0,0.04352198]
[1769546745052,0.00033939,89078.0,89061.0,0.04352198]
[1769546747757,0.08983294,89077.0,89061.0,0.04352198]
[1769546747971,0.00033939,89078.0,89063.0,0.04352198]
[1769546748985,0.00033939,89078.0,89063.0,0.04464473]
[1769546749132,0.00033939,89078.0,89063.0,0.04153267]
[1769546751281,0.00088794,89063.0,89057.0,0.00112272]
[1769546751482,0.00088794,89063.0,89054.0,0.00013939]
[1769546751483,0.00088794,89063.0,89054.0,0.00126203]
[1769546751667,0.00088794,89063.0,89054.0,0.00013939]
[1769546751868,0.00033939,89078.0,89054.0,0.00013939]
[1769546752071,0.00033939,89078.0,89077.0,0.08087616]
[1769546752321,0.00033939,89078.0,89077.0,0.06349927]
[1769546752518,0.00033939,89078.0,89077.0,0.05108504]
[1769546752785,0.00033939,89078.0,89077.0,0.03618559]
[1769546752959,0.00033939,89078.0,89077.0,0.02625118]
[1769546753182,0.0007134,89079.0,89077.0,0.02625118]
[1769546753183,0.0007134,89079.0,89077.0,0.08087616]
[1769546753397,0.0004,89086.0,89078.0,0.08087616]
[1769546753535,0.13396425,89094.0,89082.0,0.00894721]
[1769546753734,0.0004,89094.0,89092.0,0.08087616]
[1769546754094,0.0004,89094.0,89092.0,0.08027617]
[1769546754338,0.0004,89094.0,89092.0,0.07806689]
[1769546754829,0.02499999,89105.0,89092.0,0.07806689]
[1769546755014,0.0004,89112.0,89096.0,0.00358384]
[1769546755228,0.0004,89112.0,89096.0,0.0080819]
[1769546755434,0.0004,89112.0,89092.0,0.07806689]
[1769546755435,0.0004,89112.0,89093.0,0.00358384]
[1769546755648,0.04533332,89110.0,89094.0,0.00304205]
[1769546755871,0.0004,89112.0,89070.0,0.33183096]
[1769546756072,0.04533332,89102.0,89093.0,0.08087616]
[1769546756431,0.02275096,89104.0,89093.0,0.08087616]
[1769546757535,0.02275096,89104.0,89093.0,0.0807976]
[1769546757906,0.04533332,89108.0,89093.0,0.0807976]
[1769546758369,0.04533332,89108.0,89093.0,0.080719]
[1769546758572,0.04533332,89104.0,89093.0,0.080719]
[1769546759421,0.04533332,89104.0,89087.0,0.00542318]
[1769546759835,0.0004,89112.0,89087.0,0.00092512]
[1769546760047,0.0004,89112.0,89079.0,0.08087616]
[1769546760261,0.0226124,89095.0,89080.0,0.08087616]
[1769546760485,0.00152237,89112.0,89078.0,0.08087616]
[1769546760486,0.0226124,89091.0,89078.0,0.08087616]
[1769546760728,0.00033939,89078.0,89068.0,0.11536]
[1769546760945,0.00013934,89078.0,89068.0,0.11536]
[1769546761775,0.0226124,89094.0,89082.0,0.00966061]
[1769546761998,0.04564671,89098.0,89082.0,0.00966061]
[1769546762453,0.04564671,89098.0,89083.0,0.01799206]
[1769546762697,0.0003134,89098.0,89091.0,0.08087616]
[1769546763330,0.0003134,89098.0,89091.0,0.10420148]
[1769546763531,0.0003134,89098.0,89091.0,0.08087616]
[1769546763532,0.04564671,89098.0,89091.0,0.08087616]
[1769546763958,0.0003134,89098.0,89091.0,0.08087616]
[1769546765394,0.0003134,89098.0,89085.0,0.02332532]
[1769546765566,0.04533331,89097.0,89092.0,0.08087616]
[1769546772303,0.04533331,89097.0,89088.0,0.08087616]
[1769546772485,0.0003134,89098.0,89093.0,0.08087616]
[1769546773086,0.04210685,89097.0,89093.0,0.08087616]
[1769546773334,0.0003134,89098.0,89093.0,0.08087616]
[1769546773539,0.04242025,89098.0,89093.0,0.08087616]
[1769546775909,0.0003134,89098.0,89093.0,0.08087616]
[1769546776565,0.0003134,89098.0,89080.0,0.17144908]
[1769546776566,0.00033939,89093.0,89073.0,0.02332532]
[1769546776770,0.04210685,89092.0,89086.0,0.08087616]
[1769546777121,0.04210685,89092.0,89080.0,0.26503677]
[1769546777331,0.06471925,89091.0,89080.0,0.26503677]
[1769546777488,0.0003134,89098.0,89081.0,0.26503677]
[1769546777694,0.0229258,89098.0,89088.0,0.26503677]
[1769546777913,0.0003134,89098.0,89088.0,0.26503677]
[1769546779962,0.0003134,89098.0,89088.0,0.26255038]
[1769546780163,0.0003134,89098.0,89088.0,0.26503677]
[1769546782235,0.0226124,89097.0,89088.0,0.00248639]
[1769546782444,0.0226124,89096.0,89080.0,0.26503677]
[1769546782651,0.04210685,89094.0,89080.0,0.26503677]
[1769546782783,0.06471925,89094.0,89080.0,0.26503677]
[1769546782985,0.06471925,89094.0,89090.0,0.07517765]
[1769546783407,0.00033939,89090.0,89076.0,0.08087616]
[1769546783609,0.00033939,89090.0,89080.0,0.26503677]
[1769546784220,0.0226124,89094.0,89080.0,0.26503677]
[1769546784413,0.0003134,89098.0,89080.0,0.26503677]
[1769546784688,0.0003134,89098.0,89090.0,0.08087616]
[1769546786549,0.04883355,89102.0,89090.0,0.08087616]
[1769546786748,0.0001778,89098.0,89090.0,0.08087616]
[1769546788835,0.13497225,89113.0,89098.0,0.0001778]
[1769546789028,0.00053939,89112.0,89106.0,0.08087616]
[1769546789236,0.00053939,89112.0,89106.0,0.08064489]
[1769546789953,0.00033939,89106.0,89094.0,0.02462169]
[1769546790156,0.00033939,89106.0,89101.0,0.08087616]
[1769546791030,0.00033939,89106.0,89091.0,0.11532]
[1769546791031,0.04883355,89103.0,89091.0,0.08087616]
[1769546791348,0.26503677,89111.0,89091.0,0.08087616]
[1769546791349,0.04883355,89099.0,89091.0,0.08087616]
[1769546792127,0.02411611,89100.0,89091.0,0.08087616]
[1769546792700,0.04883355,89104.0,89091.0,0.08087616]
[1769546792888,0.13497225,89108.0,89091.0,0.08087616]
[1769546793103,0.08579931,89108.0,89105.0,0.08087616]
[1769546793292,0.04911425,89126.0,89105.0,0.08087616]
[1769546793293,0.02411611,89117.0,89105.0,0.08087616]
[1769546793516,0.04883355,89115.0,89105.0,0.08087616]
[1769546793719,0.04883355,89114.0,89105.0,0.08087616]
[1769546793932,0.04883355,89113.0,89105.0,0.08087616]
[1769546794827,0.00046454,89117.0,89113.0,0.00966061]
[1769546795349,0.00046454,89117.0,89110.0,0.02462169]
[1769546795998,0.00046454,89117.0,89105.0,0.12675659]
[1769546796528,0.00046454,89117.0,89116.0,0.08087616]
[1769546797195,0.02411611,89129.0,89116.0,0.08087616]
[1769546797196,0.04883355,89133.0,89124.0,0.00879607]
[1769546797394,0.07294966,89136.0,89132.0,0.08087616]
[1769546797596,0.04883355,89135.0,89132.0,0.08087616]
[1769546798008,0.28406731,89143.0,89132.0,0.07341624]
[1769546798009,0.0002807,89143.0,89132.0,0.07341624]
[1769546798221,0.00041998,89143.0,89132.0,0.06844266]
[1769546798405,0.00041998,89143.0,89132.0,0.0643972]
[1769546800126,0.00041998,89143.0,89133.0,0.08087616]
[1769546800680,0.04883355,89142.0,89138.0,0.08087616]
[1769546801526,0.04883355,89142.0,89138.0,0.07850709]
[1769546801761,0.00041998,89143.0,89138.0,0.07102998]
[1769546802187,0.04883355,89142.0,89138.0,0.07102998]
[1769546802620,0.16846661,89149.0,89138.0,0.07102998]
[1769546802784,0.16846661,89149.0,89139.0,0.07050212]
[1769546803161,0.0004,89150.0,89139.0,0.02462169]
[1769546803162,0.1443505,89146.0,89139.0,0.02462169]
[1769546803355,0.0004,89150.0,89139.0,0.02462169]
[1769546804063,0.0004,89150.0,89140.0,0.02462169]
[1769546804264,0.0004,89150.0,89138.0,0.07102998]
[1769546804265,0.0004,89150.0,89141.0,0.04588043]
[1769546804470,0.0003471,89167.0,89151.0,0.04588043]
[1769546804675,0.0003471,89167.0,89156.0,0.08087616]
[1769546805088,0.0003471,89167.0,89156.0,0.07838229]
[1769546808000,0.04883355,89166.0,89156.0,0.07838229]
[1769546808202,0.00080393,89156.0,89151.0,0.02462169]
[1769546808551,0.00080393,89156.0,89143.0,0.10549785]
[1769546808767,0.04883355,89164.0,89143.0,0.10549785]
[1769546808972,0.02411611,89164.0,89157.0,0.08087616]
[1769546809169,0.0003471,89167.0,89103.0,0.53266913]
[1769546809372,0.00080393,89157.0,89144.0,0.08087616]
[1769546809786,0.0003471,89167.0,89144.0,0.08087616]
[1769546809787,0.02411611,89166.0,89144.0,0.08087616]
[1769546809994,0.02411611,89166.0,89158.0,0.08087616]
[1769546810198,0.0003471,89167.0,89146.0,0.02462169]
[1769546810199,0.04883355,89164.0,89146.0,0.02462169]
[1769546810393,0.00080393,89158.0,89146.0,0.02462169]
[1769546810599,0.00080393,89158.0,89145.0,0.08087616]
[1769546811746,0.04883355,89164.0,89146.0,0.04588043]
[1769546811966,0.02411611,89162.0,89146.0,0.04588043]
[1769546812184,0.0003471,89167.0,89137.0,0.11528]
[1769546812185,0.02411611,89161.0,89151.0,0.08087616]
[1769546812345,0.02411611,89160.0,89151.0,0.08087616]
[1769546812960,0.07294966,89166.0,89151.0,0.08087616]
[1769546813165,0.0003471,89167.0,89151.0,0.08087616]
[1769546813976,0.00080393,89151.0,89145.0,0.02462169]
[1769546814293,0.00080393,89151.0,89150.0,0.08087616]
[1769546814465,0.07297121,89164.0,89150.0,0.08087616]
[1769546814659,0.04883355,89164.0,89150.0,0.34554318]
[1769546814875,0.02413766,89163.0,89150.0,0.34554318]
[1769546816532,0.0003471,89167.0,89150.0,0.34554318]
[1769546816533,0.0003471,89167.0,89153.0,0.26466702]
[1769546816739,0.0003471,89167.0,89157.0,0.26466702]
[1769546816948,0.0003471,89167.0,89152.0,0.04731986]
[1769546817388,0.0003471,89167.0,89164.0,0.08087616]
[1769546817633,0.02413766,89172.0,89164.0,0.08087616]
[1769546817846,0.00013925,89172.0,89170.0,0.00884896]
[1769546818057,0.00013925,89172.0,89165.0,0.07097443]
[1769546818655,0.00013925,89172.0,89165.0,0.02365457]
[1769546818943,0.04801572,89187.0,89172.0,0.00013925]
[1769546819153,0.000416,89192.0,89179.0,0.02365457]
[1769546819356,0.000416,89192.0,89182.0,0.33564145]
[1769546819762,0.000416,89192.0,89182.0,0.07097443]
[1769546820171,0.000416,89192.0,89183.0,0.04731986]
[1769546820385,0.27970395,89213.0,89183.0,0.04731986]
[1769546820386,0.04761572,89212.0,89194.0,0.04731986]
[1769546820598,0.0480798,89212.0,89194.0,0.04731986]
[1769546821690,0.0480798,89212.0,89195.0,0.02365457]
[1769546822372,0.004,89220.0,89200.0,0.08087616]
[1769546822590,0.004,89220.0,89190.0,0.33060802]
[1769546822591,0.00055517,89217.0,89202.0,0.02365457]
[1769546822810,0.00055517,89217.0,89203.0,0.04731986]
[1769546823025,0.00055517,89217.0,89206.0,0.07097443]
[1769546823459,0.00055517,89217.0,89201.0,0.08087616]
[1769546823460,0.004,89220.0,89207.0,0.02365457]
[1769546823674,0.004,89220.0,89210.0,0.04731986]
[1769546823890,0.004,89220.0,89207.0,0.00013917]
[1769546824098,0.004,89220.0,89211.0,0.04731986]
[1769546824734,0.004,89220.0,89207.0,0.00013917]
[1769546824950,0.004,89220.0,89208.0,0.02365457]
[1769546825171,0.004,89220.0,89208.0,0.04731986]
[1769546825377,0.004,89220.0,89208.0,0.02365457]
[1769546825581,0.004,89220.0,89209.0,0.04731986]
[1769546825796,0.004,89220.0,89211.0,0.07097443]
[1769546826185,0.004,89220.0,89211.0,0.02365457]
[1769546826644,0.004,89220.0,89190.0,0.55484808]
[1769546826645,0.00080393,89211.0,89196.0,0.02365457]
[1769546826857,0.00080393,89211.0,89191.0,0.12819602]
[1769546826858,0.00094297,89211.0,89193.0,0.02365457]
[1769546827072,0.00094297,89211.0,89181.0,0.08087616]
[1769546827294,0.00094297,89211.0,89182.0,0.10453073]
[1769546827576,0.02413766,89207.0,89183.0,0.02365457]
[1769546827822,0.004,89220.0,89201.0,0.04731986]
[1769546828033,0.004,89220.0,89212.0,0.02365457]
[1769546828911,0.004,89220.0,89213.0,0.02365457]
[1769546829144,0.35145733,89235.0,89213.0,0.02365457]
[1769546829354,0.04761572,89235.0,89213.0,0.02365457]
[1769546829571,0.27970395,89238.0,89213.0,0.02365457]
[1769546829792,0.27970395,89240.0,89212.0,0.08087616]
[1769546830007,0.27970395,89241.0,89228.0,0.04731986]
[1769546830228,0.33922568,89252.0,89226.0,0.08087616]
[1769546830440,0.000416,89267.0,89226.0,0.08087616]
[1769546830441,0.02413766,89260.0,89242.0,0.04731986]
[1769546830657,0.04761572,89259.0,89241.0,0.02365457]
[1769546830870,0.04761572,89258.0,89236.0,0.02365457]
[1769546831084,0.04761572,89258.0,89237.0,0.02365457]
[1769546831307,0.04761572,89258.0,89235.0,0.04731986]
[1769546831308,0.04761572,89257.0,89235.0,0.04731986]
[1769546831523,0.04761572,89257.0,89234.0,0.04731986]
[1769546831734,0.04761572,89257.0,89226.0,0.08067616]
[1769546831735,0.00013917,89258.0,89232.0,0.02365457]
[1769546831949,0.00013917,89258.0,89230.0,0.33042657]
[1769546832169,0.00013917,89258.0,89226.0,0.08067616]
[1769546832170,0.04761572,89256.0,89235.0,0.02365457]
[1769546832384,0.00013917,89258.0,89235.0,0.02365457]
[1769546832385,0.04761572,89254.0,89235.0,0.02365457]
[1769546832813,0.04761572,89254.0,89236.0,0.07097443]
[1769546833072,0.05600833,89273.0,89231.0,0.1152]
[1769546833073,0.00306513,89294.0,89245.0,0.04731986]
[1769546833303,0.00306513,89294.0,89243.0,0.08087616]
[1769546833304,5.3,89299.0,89263.0,0.33042657]
[1769546833519,5.3,89299.0,89257.0,0.08087616]
[1769546833520,5.3,89299.0,89291.0,0.02473412]
[1769546833784,5.3,89299.0,89286.0,0.0057899]
[1769546833785,4.71652609,89299.0,89292.0,0.11516]
[1769546833984,4.71652609,89299.0,89293.0,0.02365457]
[1769546834427,4.70652609,89299.0,89293.0,0.02365457]
[1769546834653,4.70652609,89299.0,89288.0,0.01792679]
[1769546834876,4.70652609,89299.0,89291.0,0.01792679]
[1769546835128,4.70652609,89299.0,89297.0,0.02365457]
[1769546835364,9e-05,89318.0,89299.0,0.16126142]
[1769546835580,0.01053174,89388.0,89335.0,0.04731986]
[1769546835800,0.01053174,89388.0,89362.0,0.09397]
[1769546835801,0.0106709,89388.0,89362.0,0.09397]
[1769546836027,0.04761572,89386.0,89332.0,0.02365457]
[1769546836245,0.00013916,89388.0,89332.0,0.02365457]
[1769546836246,0.05594155,89379.0,89332.0,0.02365457]
[1769546836472,0.00013916,89388.0,89317.0,0.02365457]
[1769546836473,0.05596281,89346.0,89317.0,0.02365457]
[1769546836690,0.33042657,89360.0,89301.0,0.17902098]
[1769546836691,0.04761572,89335.0,89301.0,0.17902098]
[1769546836915,0.04761572,89335.0,89293.0,0.04731986]
[1769546836916,0.04761572,89337.0,89302.0,0.20267555]
[1769546837175,0.01099528,89338.0,89302.0,0.20267555]
[1769546837383,0.020736,89356.0,89288.0,0.17902098]